Workbook

Sheet Title
C1: Calculation practice activities to accompany CHAPTER 4
C3: Social Statistics in Action: A Canadian Introduction
C4: Andrea M. Noack
C6: Oxford University Press, 2018
C8: For more information, visit:
C9: https://www.oupcanada.com/catalog/9780199015214.html

Sheet Mean
B1: PRACTICE CALCULATING MEANS
B3: Calculate the mean (average) of the values in the yellow highlighted cells. Keep two decimal places throughout your calculations. To check your answer, click on the 'Show Answer' button.
B6: Case # | C6: Value on Variable X
B7: 1 | C7: 14 | E7: Number of Cases (N): | F7: 12
B8: 2 | C8: 15 | E8: Mean: | F8: hidden
B9: 3 | C9: 3
B10: 4 | C10: 12 | E10: Need some help?
B11: 5 | C11: 11
B12: 6 | C12: 16
B13: 7 | C13: 6
B14: 8 | C14: 20
B15: 9 | C15: 4
B16: 10 | C16: 9
B17: 11 | C17: 5
B18: 12 | C18: 7
B20: MEAN CALCULATION
B21: Numerator
C22: = 14 + 15 + 3 + 12 + 11 + 16 + 6 + 20 + 4 + 9 + 5 + 7
C23: = ?
B24: Denominator
C25: = 12
B26: Mean
C27: = 122 ÷ 12
C28: = ?

Sheet Variance & Std Dev-pop. data
B1: PRACTICE CALCULATING VARIANCE AND STANDARD DEVIATION (POPULATION DATA)
B3: Calculate the variance and standard deviation of the values in the yellow highlighted cells. Keep two decimal places throughout your calculations. To check your answers, click on the 'Show Answers' button.
B6: Case # | C6: Value on Variable X
B7: 1 | C7: 20 | E7: Number of Cases (N): | G7: 12
B8: 2 | C8: 20 | E8: Mean (X-bar): | G8: 12.58
B9: 3 | C9: 9
B10: 4 | C10: 8 | E10: Variance: | G10: hidden
B11: 5 | C11: 10 | E11: Standard Deviation: | G11: hidden
B12: 6 | C12: 7
B13: 7 | C13: 8
B14: 8 | C14: 13 | E14: Need some help?
B15: 9 | C15: 20
B16: 10 | C16: 7
B17: 11 | C17: 9
B18: 12 | C18: 20
B20: VARIANCE AND STANDARD DEVIATION CALCULATIONS
B21: Case # | C21: Value | D21: Mean | F21: Value - Mean | G21: (Value-Mean)2
B22: 1 | C22: 20 | D22: 12.58 | F22: 20 - 12.58 = ? | G22: 7.42 x 7.42 = ?
B23: 2 | C23: 20 | D23: 12.58 | F23: 20 - 12.58 = ? | G23: 7.42 x 7.42 = ?
B24: 3 | C24: 9 | D24: 12.58 | F24: 9 - 12.58 = ? | G24: -3.58 x -3.58 = ?
B25: 4 | C25: 8 | D25: 12.58 | F25: 8 - 12.58 = ? | G25: -4.58 x -4.58 = ?
B26: 5 | C26: 10 | D26: 12.58 | F26: 10 - 12.58 = ? | G26: -2.58 x -2.58 = ?
B27: 6 | C27: 7 | D27: 12.58 | F27: 7 - 12.58 = ? | G27: -5.58 x -5.58 = ?
B28: 7 | C28: 8 | D28: 12.58 | F28: 8 - 12.58 = ? | G28: -4.58 x -4.58 = ?
B29: 8 | C29: 13 | D29: 12.58 | F29: 13 - 12.58 = ? | G29: 0.42 x 0.42 = ?
B30: 9 | C30: 20 | D30: 12.58 | F30: 20 - 12.58 = ? | G30: 7.42 x 7.42 = ?
B31: 10 | C31: 7 | D31: 12.58 | F31: 7 - 12.58 = ? | G31: -5.58 x -5.58 = ?
B32: 11 | C32: 9 | D32: 12.58 | F32: 9 - 12.58 = ? | G32: -3.58 x -3.58 = ?
B33: 12 | C33: 20 | D33: 12.58 | F33: 20 - 12.58 = ? | G33: 7.42 x 7.42 = ?
F34: Column Sum (Σ) | G34: = 356.96
F35: N | G35: = 12
F36: Variance
G37: = 356.96 ÷ 12
G38: = ?
F39: Std. Deviation
G40: = square root of (356.96 ÷ 12)
G41: = square root of ?
G42: = ?

Sheet Z-scores
B1: PRACTICE CALCULATING Z-SCORES
B3: Calculate the z-score of each case, using the value in the yellow highlighted cell. Keep two decimal places throughout your calculations. To check your answers, click on the 'Show Answers' button.
B6: Case # | C6: Value on Variable X | D6: Z-score
B7: 1 | C7: 6 | D7: hidden | F7: Mean (X-bar): | H7: 12.63
B8: 2 | C8: 15 | D8: hidden | F8: Standard Deviation (S): | H8: 6.38
B9: 3 | C9: 15 | D9: hidden
B10: 4 | C10: 17 | D10: hidden | F10: Need some help?
B11: 5 | C11: 19 | D11: hidden
B12: 6 | C12: 8 | D12: hidden
B13: 7 | C13: 1 | D13: hidden
B14: 8 | C14: 20 | D14: hidden
B16: Z-SCORE CALCULATIONS
B17: Case # | C17: Value | D17: Mean | E17: Std. Deviation | G17: Value-Mean | H17: (Value-Mean) ÷ Std. Dev.
B18: 1 | C18: 6 | D18: 12.63 | E18: 6.38 | G18: 6 - 12.63 = ? | H18: -6.63 ÷ 6.38 = ?
B19: 2 | C19: 15 | D19: 12.63 | E19: 6.38 | G19: 15 - 12.63 = ? | H19: 2.37 ÷ 6.38 = ?
B20: 3 | C20: 15 | D20: 12.63 | E20: 6.38 | G20: 15 - 12.63 = ? | H20: 2.37 ÷ 6.38 = ?
B21: 4 | C21: 17 | D21: 12.63 | E21: 6.38 | G21: 17 - 12.63 = ? | H21: 4.37 ÷ 6.38 = ?
B22: 5 | C22: 19 | D22: 12.63 | E22: 6.38 | G22: 19 - 12.63 = ? | H22: 6.37 ÷ 6.38 = ?
B23: 6 | C23: 8 | D23: 12.63 | E23: 6.38 | G23: 8 - 12.63 = ? | H23: -4.63 ÷ 6.38 = ?
B24: 7 | C24: 1 | D24: 12.63 | E24: 6.38 | G24: 1 - 12.63 = ? | H24: -11.63 ÷ 6.38 = ?
B25: 8 | C25: 20 | D25: 12.63 | E25: 6.38 | G25: 20 - 12.63 = ? | H25: 7.37 ÷ 6.38 = ?

Sheet Variance & Std Deviation-A (hidden)
B1: PRACTICE CALCULATING VARIANCE AND STANDARD DEVIATION (POPULATION)
B6: Case # | C6: Value
A7: =RANDBETWEEN(1,20) -> 16 | B7: 1 | C7: 20 | E7: Number of Cases: | G7: =COUNT(C7:C18) -> 12
A8: 5 | B8: 2 | C8: 20 | E8: Mean: | G8: =ROUND(AVERAGE(C7:C18),2) -> 12.58
A9: 4 | B9: 3 | C9: 9
A10: 15 | B10: 4 | C10: 8 | E10: Variance: | G10: =J37 -> 29.75
A11: 12 | B11: 5 | C11: 10 | E11: Standard Deviation: | G11: =J41 -> 5.45
A12: 19 | B12: 6 | C12: 7
A13: 9 | B13: 7 | C13: 8 | E13: Need some help?
A14: 18 | B14: 8 | C14: 13
A15: 11 | B15: 9 | C15: 20
A16: 6 | B16: 10 | C16: 7
A17: 14 | B17: 11 | C17: 9
A18: 8 | B18: 12 | C18: 20
B20: VARIANCE AND STANDARD DEVIATION CALCULATIONS
B21: Case # | C21: Value | D21: Mean | F21: Value - Mean | G21: (Value-Mean)2
B22: 1 | C22: =C7 -> 20 | D22: =$G$8 -> 12.58 | F22: =CONCATENATE($C22," - ",$G$8," = ",$J22) -> 20 - 12.58 = 7.42 | G22: =CONCATENATE($J22," x ",$J22," = ",$K22) -> 7.42 x 7.42 = 55.06 | J22: =ROUND(C22-$G$8,2) -> 7.42 | K22: =ROUND(J22^2,2) -> 55.06
B23: 2 | C23: =C8 -> 20 | D23: =$G$8 -> 12.58 | F23: 20 - 12.58 = 7.42 | G23: =CONCATENATE($J23," x ",$J23," = ",$K23) -> 7.42 x 7.42 = 55.06 | J23: 7.42 | K23: =ROUND(J23^2,2) -> 55.06
B24: 3 | C24: 9 | D24: 12.58 | F24: 9 - 12.58 = -3.58 | G24: -3.58 x -3.58 = 12.82 | J24: -3.58 | K24: 12.82
B25: 4 | C25: 8 | D25: 12.58 | F25: 8 - 12.58 = -4.58 | G25: -4.58 x -4.58 = 20.98 | J25: -4.58 | K25: 20.98
B26: 5 | C26: 10 | D26: 12.58 | F26: 10 - 12.58 = -2.58 | G26: -2.58 x -2.58 = 6.66 | J26: -2.58 | K26: 6.66
B27: 6 | C27: 7 | D27: 12.58 | F27: 7 - 12.58 = -5.58 | G27: -5.58 x -5.58 = 31.14 | J27: -5.58 | K27: 31.14
B28: 7 | C28: 8 | D28: 12.58 | F28: 8 - 12.58 = -4.58 | G28: -4.58 x -4.58 = 20.98 | J28: -4.58 | K28: 20.98
B29: 8 | C29: 13 | D29: 12.58 | F29: 13 - 12.58 = 0.42 | G29: 0.42 x 0.42 = 0.18 | J29: 0.42 | K29: 0.18
B30: 9 | C30: 20 | D30: 12.58 | F30: 20 - 12.58 = 7.42 | G30: 7.42 x 7.42 = 55.06 | J30: 7.42 | K30: 55.06
B31: 10 | C31: 7 | D31: 12.58 | F31: 7 - 12.58 = -5.58 | G31: -5.58 x -5.58 = 31.14 | J31: -5.58 | K31: 31.14
B32: 11 | C32: 9 | D32: 12.58 | F32: 9 - 12.58 = -3.58 | G32: -3.58 x -3.58 = 12.82 | J32: -3.58 | K32: 12.82
B33: 12 | C33: 20 | D33: 12.58 | F33: 20 - 12.58 = 7.42 | G33: 7.42 x 7.42 = 55.06 | J33: 7.42 | K33: 55.06
F34: Column Sum | G34: =CONCATENATE("'= ",J34) -> '= 356.96 | J34: =ROUND(SUM(K22:K33),2) -> 356.96
F35: n | G35: =CONCATENATE("'= ",J35) -> '= 12 | J35: =G7 -> 12
F36: Variance
G37: =CONCATENATE("'= ",J34," ÷ ",J35) -> '= 356.96 ÷ 12 | J37: =ROUND(J34/J35,2) -> 29.75
G38: =CONCATENATE("'= ",J37) -> '= 29.75
F39: Std. Deviation
G40: =CONCATENATE("'= square root of (",J34," ÷ ",J35,")") -> '= square root of (356.96 ÷ 12)
G41: =CONCATENATE("'= square root of ",J37) -> '= square root of 29.75 | J41: =ROUND(SQRT(J37),2) -> 5.45
G42: =CONCATENATE("'= ",J41) -> '= 5.45
F43: Value - Mean | G43: (Value-Mean)2
F44: =CONCATENATE($C22," - ",$G$8," = ?") -> 20 - 12.58 = ? | G44: =CONCATENATE($J22," x ",$J22," = ?") -> 7.42 x 7.42 = ?
F45: =CONCATENATE($C23," - ",$G$8," = ?") -> 20 - 12.58 = ? | G45: =CONCATENATE($J23," x ",$J23," = ?") -> 7.42 x 7.42 = ?
F46: 9 - 12.58 = ? | G46: -3.58 x -3.58 = ?
F47: 8 - 12.58 = ? | G47: -4.58 x -4.58 = ?
F48: 10 - 12.58 = ? | G48: -2.58 x -2.58 = ?
F49: 7 - 12.58 = ? | G49: -5.58 x -5.58 = ?
F50: 8 - 12.58 = ? | G50: -4.58 x -4.58 = ?
F51: 13 - 12.58 = ? | G51: 0.42 x 0.42 = ?
F52: 20 - 12.58 = ? | G52: 7.42 x 7.42 = ?
F53: 7 - 12.58 = ? | G53: -5.58 x -5.58 = ?
F54: 9 - 12.58 = ? | G54: -3.58 x -3.58 = ?
F55: 20 - 12.58 = ? | G55: 7.42 x 7.42 = ?

Sheet Z-scores-A (hidden)
B1: PRACTICE CALCULATING Z-SCORES
B6: Case # | C6: Value | D6: Z-score
A7: =RANDBETWEEN(1,20) -> 4 | B7: 1 | C7: 6 | D7: =K18 -> -1.04 | F7: Mean: | H7: =ROUND(AVERAGE(C7:C14),2) -> 12.63 | J7: =ROUND(C7-$H$7,2) -> -6.63 | K7: =ROUND(J7*J7,2) -> 43.96
A8: =RANDBETWEEN(1,20) -> 15 | B8: 2 | C8: 15 | D8: 0.37 | F8: Standard Deviation: | H8: =M15 -> 6.38 | J8: 2.37 | K8: =ROUND(J8*J8,2) -> 5.62
A9: 15 | B9: 3 | C9: 15 | D9: 0.37 | J9: 2.37 | K9: 5.62
A10: 20 | B10: 4 | C10: 17 | D10: 0.68 | F10: Need some help? | J10: 4.37 | K10: 19.1
A11: 8 | B11: 5 | C11: 19 | D11: 1 | J11: 6.37 | K11: 40.58
A12: 13 | B12: 6 | C12: 8 | D12: -0.73 | J12: -4.63 | K12: 21.44
A13: 16 | B13: 7 | C13: 1 | D13: -1.82 | J13: -11.63 | K13: 135.26
A14: 20 | B14: 8 | C14: 20 | D14: 1.16 | J14: 7.37 | K14: 54.32
K15: =ROUND(SUM(K7:K14),2) -> 325.9 | L15: =ROUND(K15/8,2) -> 40.74 | M15: =ROUND(SQRT(L15),2) -> 6.38
B17: Case # | C17: Value | D17: Mean | E17: Std. Dev. | G17: Value-Mean | H17: Z-Score
B18: 1 | C18: =C7 -> 6 | D18: =$H$7 -> 12.63 | E18: =$H$8 -> 6.38 | G18: =CONCATENATE(C18," - ",$H$7," = ",J18) -> 6 - 12.63 = -6.63 | H18: =CONCATENATE(J18," ÷ ",$H$8," = ",K18) -> -6.63 ÷ 6.38 = -1.04 | J18: =ROUND(C18-$H$7,2) -> -6.63 | K18: =ROUND(J18/$H$8,2) -> -1.04
B19: 2 | C19: 15 | D19: 12.63 | E19: 6.38 | G19: 15 - 12.63 = 2.37 | H19: =CONCATENATE(J19," ÷ ",$H$8," = ",K19) -> 2.37 ÷ 6.38 = 0.37 | J19: 2.37 | K19: 0.37
B20: 3 | C20: 15 | D20: 12.63 | E20: 6.38 | G20: 15 - 12.63 = 2.37 | H20: 2.37 ÷ 6.38 = 0.37 | J20: 2.37 | K20: 0.37
B21: 4 | C21: 17 | D21: 12.63 | E21: 6.38 | G21: 17 - 12.63 = 4.37 | H21: 4.37 ÷ 6.38 = 0.68 | J21: 4.37 | K21: 0.68
B22: 5 | C22: 19 | D22: 12.63 | E22: 6.38 | G22: 19 - 12.63 = 6.37 | H22: 6.37 ÷ 6.38 = 1 | J22: 6.37 | K22: 1
B23: 6 | C23: 8 | D23: 12.63 | E23: 6.38 | G23: 8 - 12.63 = -4.63 | H23: -4.63 ÷ 6.38 = -0.73 | J23: -4.63 | K23: -0.73
B24: 7 | C24: 1 | D24: 12.63 | E24: 6.38 | G24: 1 - 12.63 = -11.63 | H24: -11.63 ÷ 6.38 = -1.82 | J24: -11.63 | K24: -1.82
B25: 8 | C25: 20 | D25: 12.63 | E25: 6.38 | G25: 20 - 12.63 = 7.37 | H25: 7.37 ÷ 6.38 = 1.16 | J25: 7.37 | K25: 1.16
G28: Value-Mean | H28: Z-Score
G29: =CONCATENATE(C18," - ",$H$7," = ?") -> 6 - 12.63 = ? | H29: =CONCATENATE(J18," ÷ ",$H$8," = ?") -> -6.63 ÷ 6.38 = ?
G30: 15 - 12.63 = ? | H30: 2.37 ÷ 6.38 = ?
G31: 15 - 12.63 = ? | H31: 2.37 ÷ 6.38 = ?
G32: 17 - 12.63 = ? | H32: 4.37 ÷ 6.38 = ?
G33: 19 - 12.63 = ? | H33: 6.37 ÷ 6.38 = ?
G34: 8 - 12.63 = ? | H34: -4.63 ÷ 6.38 = ?
G35: 1 - 12.63 = ? | H35: -11.63 ÷ 6.38 = ?
G36: 20 - 12.63 = ? | H36: 7.37 ÷ 6.38 = ?

Sheet Mean-A (hidden)
B1: PRACTICE CALCULATING MEANS
B6: Case # | C6: Value
A7: =RANDBETWEEN(1,20) -> 20 | B7: 1 | C7: 14 | E7: Number of Cases: | F7: =COUNT(C7:C18) -> 12
A8: =RANDBETWEEN(1,20) -> 18 | B8: 2 | C8: 15 | E8: Mean: | F8: =ROUND(AVERAGE(C7:C18),2) -> 10.17
A9: 19 | B9: 3 | C9: 3
A10: 1 | B10: 4 | C10: 12 | E10: Need some help?
A11: 1 | B11: 5 | C11: 11
A12: 15 | B12: 6 | C12: 16
A13: 5 | B13: 7 | C13: 6
A14: 9 | B14: 8 | C14: 20
A15: 1 | B15: 9 | C15: 4
A16: 16 | B16: 10 | C16: 9
A17: 19 | B17: 11 | C17: 5
A18: 17 | B18: 12 | C18: 7
B20: MEAN CALCULATION
B21: Numerator:
C22: =CONCATENATE("'= ",C7," + ",C8," + ",C9," + ",C10," + ",C11," + ",C12," + ",C13," + ",C14," + ",C15," + ",C16," + ",C17," + ",C18) -> '= 14 + 15 + 3 + 12 + 11 + 16 + 6 + 20 + 4 + 9 + 5 + 7 | H22: =SUM(C7:C18) -> 122
C23: =CONCATENATE("'= ",H22) -> '= 122
B24: Denominator:
C25: =CONCATENATE("'= ",F7) -> '= 12 | H25: =ROUND(H22/F7,2) -> 10.17
B26: Mean:
C27: =CONCATENATE("'= ",H22," ÷ ",F7) -> '= 122 ÷ 12
C28: =CONCATENATE("'= ",H25) -> '= 10.17
